[Event "Romanian Team Blitz Open 2022"]
[Site "Sebes"]
[Date "2022.12.04"]
[Round "5.21"]
[White "Baratosi, Daniel"]
[Black "Dragomirescu, Robin-Alexandru"]
[Result "0-1"]
[ECO "B00"]
[WhiteElo "2335"]
[BlackElo "2337"]
[Annotator "TA"]
[PlyCount "65"]
[EventDate "2022.12.04"]
[EventType "blitz"]
[EventCountry "ROU"]
[SourceTitle "playchess.com"]
[Source "ChessBase"]
[SourceQuality "1"]
[TimeControl "180+2"]

{[%evp 9,65,58,54,0,0,-2,33,0,0,0,0,0,0,0,0,0,0,0,83,94,150,85,89,19,18,25,18,-37,25,-118,4,4,4,9,9,4,20,0,0,-6,-4,0,0,-853,-870,-782,-762,-735,-590,-579,-549,-1449,-1163,-29976,-29978,-29982,-29983,-29978]} 1. e4 {[%emt 0:00:02]} Nc6 {[%emt 0:00:01]} 2. Nf3 {[%emt 0:00:01]} f5 {[%emt 0:00:01]} 3. exf5 {[%emt 0:00:06]} d5 {[%emt 0:00:01]} 4. d4 {[%emt 0:00:03]} Bxf5 {[%emt 0:00:02]} 5. Bd3 {[%emt 0:00:03]} Bg4 {[%emt 0:00:01]} 6. O-O {[%emt 0:00:15] B00: Queen's Fianchetto Defence, Nimzowitsch Defence.} (6. h3 $14 Bxf3 7. Qxf3) 6... Nxd4 $11 {[%emt 0:00:06] [#]} 7. Nbd2 $146 {[%emt 0:00:18]} ({Predecessor:} 7. c3 Nxf3+ 8. gxf3 Bh3 9. Re1 Qd7 10. f4 g6 11. Be3 Nf6 12. Bd4 Bg7 13. Nd2 {1-0 (34) Costantini,M (1193)-Manarin,F (1386) IECC email 2001}) 7... e5 {[%emt 0:01:02]} 8. Re1 {[%emt 0:00:17] aiming for h3. White is slightly better.} (8. Qe1 {simplifies} Nxf3+ 9. gxf3 Be6 10. Qxe5 Qd6 11. Qh5+) 8... Bd6 {[%emt 0:00:13]} 9. h3 {[%emt 0:00:17]} Nxf3+ {[%emt 0:00:03]} 10. Nxf3 {[%emt 0:00:05]} Bxf3 {[%emt 0:00:02]} 11. Qxf3 {[%emt 0:00:02]} Nf6 {[%emt 0:00:02]} 12. Bg5 {[%emt 0:00:04]} c6 {[%emt 0:00:56]} 13. c4 $1 {[%emt 0:00:19] Hoping for cxd5.} e4 {[%emt 0:00:41]} (13... O-O $11 14. cxd5 cxd5 15. Bxf6 Qxf6 16. Qxd5+ Kh8) 14. cxd5 $16 {[%emt 0:00:09]} cxd5 {[%emt 0:00:02] [#]} (14... O-O $142 15. Bxe4 Qb6) 15. Bxf6 {[%emt 0:00:09]} ({Resist} 15. Bb5+ $6 Kf8 16. Qb3 a6 $16) ({White should try} 15. Bxe4 $1 {[%mdl 512]} O-O 16. Bxd5+ Kh8 17. Re6 (17. Bxb7 Rb8 $18)) 15... Qxf6 {[%emt 0:00:03] [#]} 16. Qh5+ {[%emt 0:00:01]} (16. Bxe4 $1 $16 O-O-O 17. Bxd5 Qxf3 18. Bxf3) 16... Qf7 $11 {[%emt 0:00:13]} 17. Bb5+ {[%emt 0:01:25]} (17. Qxf7+ {simplifies} Kxf7 18. Bc2 Be5 19. Bb3) 17... Kf8 {[%cal Be8f8,Bf8f7,Bf7e6][%mdl 32]} 18. Qxf7+ {[%emt 0:00:00]} Kxf7 {[%emt 0:00:01]} 19. Red1 {[%emt 0:00:00]} (19. Ba4 $1 $11 {keeps the balance.}) 19... Rhd8 {[%emt 0:00:01]} (19... Ke6 $17 20. f3 Bc5+ 21. Kh2 e3) 20. Rxd5 {[%emt 0:00:00]} Bh2+ {[%emt 0:00:02]} 21. Kxh2 {[%emt 0:00:00]} Rxd5 {[%emt 0:00:01][%mdl 4096] Endgame KRR-KRB} 22. Bc4 {[%emt 0:00:00]} Ke6 $1 {[%emt 0:00:02]} 23. Rd1 {[%emt 0:00:00][%mdl 64] Pin} (23. Bxd5+ {simplifies} Kxd5 24. Rd1+ Kc6 25. h4) 23... Rad8 {[%emt 0:00:01][%cal Ob7b5]} 24. Kg3 {[%emt 0:00:00][%cal Og3f4] [#] Kf4! is the strong threat.} b5 $1 {[%emt 0:00:08][%cal Bb7b5,Bb5b4][%mdl 32]} 25. Bxd5+ (25. Bb3 a5) 25... Rxd5 {[%emt 0:00:01]} 26. Rxd5 {[%emt 0:00:00][%mdl 8192]} (26. Re1 $11) 26... Kxd5 {[%emt 0:00:01] KP-KP} 27. Kf4 {[%emt 0:00:00] [#]} Kd4 $1 {[%emt 0:00:02]} 28. g4 {[%emt 0:00:03]} b4 {[%emt 0:00:04]} 29. h4 {[%emt 0:00:07]} Kd3 {[%emt 0:00:01] And now ...Kc2 would win.} 30. Ke5 {[%emt 0:00:05]} Kc2 {[%emt 0:00:03]} 31. g5 {[%emt 0:00:10]} Kxb2 {[%emt 0:00:01]} 32. Kxe4 {[%emt 0:00:01]} Kxa2 {[%emt 0:00:01]} 33. Kd4 {[%emt 0:00:06] Weighted Error Value: White=0.69/Black=0.29 (precise)} 0-1

[Event "Romanian Team Blitz Open 2022"]
[Site "Sebes"]
[Date "2022.12.04"]
[Round "5.22"]
[White "Ionescu, Mihai"]
[Black "Nagy-Elek, Tamas"]
[Result "1/2-1/2"]
[ECO "D30"]
[WhiteElo "2243"]
[BlackElo "1976"]
[Annotator "TA"]
[PlyCount "53"]
[EventDate "2022.12.04"]
[EventType "blitz"]
[EventCountry "ROU"]
[SourceTitle "playchess.com"]
[Source "ChessBase"]
[SourceQuality "1"]
[TimeControl "180+2"]

{[%evp 9,53,19,27,27,35,30,37,21,20,17,26,15,18,0,4,-30,-4,0,22,32,39,23,27,13,14,0,14,0,12,0,0,-1,-1,-12,-12,-13,-8,-7,-3,-17,0,0,0,0,0,-7]} 1. Nf3 {[%emt 0:00:03]} d5 {[%emt 0:00:03]} 2. d4 {[%emt 0:00:03]} Nf6 {[%emt 0:00:01][%cal Bg8f6,Bf6e4,Be4c5][%mdl 32]} 3. c4 {[%emt 0:00:02]} c6 {[%emt 0:00:02]} 4. e3 {[%emt 0:00:02]} e6 {[%emt 0:00:02]} 5. Bd3 {[%emt 0:00:04]} Nbd7 {[%emt 0:00:05]} 6. b3 {[%emt 0:00:05] D30: Queen's Gambit Declined: Systems without Nc3.} Ne4 {[%emt 0:00:03]} 7. O-O {[%emt 0:00:42]} f5 {[%emt 0:00:03]} 8. Ne5 {[%emt 0:00:17] White is slightly better.} Nxe5 {[%emt 0:00:22]} 9. dxe5 {[%emt 0:00:02]} Be7 {[%emt 0:00:48]} 10. Bb2 {[%emt 0:00:24]} O-O {[%emt 0:00:05]} 11. f3 {[%emt 0:00:04]} Nc5 {[%emt 0:00:08] [#]} 12. Bc2 $146 {[%emt 0:00:02]} ({Predecessor:} 12. Be2 a5 13. Nd2 Bd7 14. Qc2 Be8 15. Bd4 Na6 16. c5 f4 17. Bd3 Nb4 18. Bxh7+ {1-0 (37) Izeta Txabarri,F (2515)-Rivera Kuzawka,D (2440) Oviedo 1993}) 12... Qc7 {[%emt 0:00:16]} 13. Nd2 {[%emt 0:00:14]} Nd7 {[%emt 0:00:06]} 14. f4 {[%emt 0:00:05]} Nc5 {[%emt 0:00:03]} 15. Qe2 {[%emt 0:00:05]} Ne4 {[%emt 0:00:06]} 16. Nxe4 {[%emt 0:00:13]} dxe4 {[%emt 0:00:09] The position is equal.} 17. Rad1 {[%emt 0:00:17]} b6 {[%emt 0:00:11]} 18. Rd2 {[%emt 0:00:05]} Ba6 {[%emt 0:00:10]} 19. Rfd1 {[%emt 0:00:09] [#] Threatens to win with Rd7.} Rad8 {[%emt 0:00:01] Inhibits Rd7.} 20. Rxd8 {[%emt 0:00:14]} Rxd8 {[%emt 0:00:02]} 21. Rxd8+ {[%emt 0:00:02]} Qxd8 {[%emt 0:00:01]} 22. Qd1 {[%emt 0:00:02]} Qxd1+ {[%emt 0:00:09]} 23. Bxd1 {[%emt 0:00:01]} Kf7 {[%emt 0:00:14]} 24. Be2 {[%emt 0:00:01]} g6 {[%emt 0:00:04]} 25. Kf2 {[%emt 0:00:02]} h5 {[%emt 0:00:04]} 26. g3 {[%emt 0:00:06]} Ke8 {[%emt 0:00:12]} 27. Ke1 {[%emt 0:00:30] Weighted Error Value: White=0.09 (flawless) /Black=0.06 (flawless)} 1/2-1/2

[Event "Romanian Team Blitz Open 2022"]
[Site "Sebes"]
[Date "2022.12.04"]
[Round "5.23"]
[White "Chiheri, Alexandru-Virgil"]
[Black "Dragomirescu, Calin"]
[Result "0-1"]
[ECO "B06"]
[WhiteElo "1937"]
[BlackElo "1971"]
[Annotator "TA"]
[PlyCount "53"]
[EventDate "2022.12.04"]
[EventType "blitz"]
[EventCountry "ROU"]
[SourceTitle "playchess.com"]
[Source "ChessBase"]
[SourceQuality "1"]
[TimeControl "180+2"]

{[%evp 10,53,53,33,66,27,45,37,37,22,28,-6,-15,-7,0,-20,-46,-70,-42,-42,-36,-140,-132,-163,0,0,0,-140,-146,-201,-205,-303,-222,-463,-466,-545,-502,-787,-755,-989,-839,-3275,-3141,-3339,-3045,-29995]} 1. e4 {[%emt 0:00:02]} g6 {[%emt 0:00:00]} 2. d4 {[%emt 0:00:01]} Bg7 {[%emt 0:00:01]} 3. Nc3 {[%emt 0:00:01]} d6 {[%emt 0:00:01]} 4. Be3 {[%emt 0:00:01]} a6 {[%emt 0:00:01]} 5. Qd2 {[%emt 0:00:01]} b5 {[%emt 0:00:01]} 6. f3 {[%emt 0:00:00]} Bb7 {[%emt 0:00:02] B06: Modern Defence.} 7. O-O-O {[%emt 0:00:06]} (7. a4 $5 {[%cal Ra4b5]}) 7... Nd7 {[%emt 0:00:00]} 8. Kb1 {[%emt 0:00:04]} Rc8 {[%emt 0:00:02] [#] White is slightly better.} 9. Nh3 $146 {[%emt 0:00:03]} ({Predecessor:} 9. h4 h6 10. Nh3 Nb6 11. Bd3 Nf6 12. Nf4 Nfd7 13. e5 e6 14. d5 Nxd5 15. Ncxd5 Bxd5 16. Nxd5 exd5 17. exd6 {1-0 (77) Ponkratov,P (2613)-Petrosian,T (2671) Moscow 2015}) 9... c5 {[%emt 0:00:02]} 10. g3 {[%emt 0:00:12]} cxd4 {[%emt 0:00:11]} 11. Bxd4 {[%emt 0:00:01]} Ngf6 {[%emt 0:00:02]} 12. Bg2 {[%emt 0:00:01][%cal Oc3d5]} O-O {[%emt 0:00:06]} 13. Nf2 {[%emt 0:00:03]} b4 {[%emt 0:00:15]} 14. Ne2 {[%emt 0:00:03]} a5 {[%emt 0:00:02]} (14... Qc7 {is interesting.} 15. Rc1 e5 16. Be3 d5) 15. f4 {[%emt 0:00:09]} (15. h4 $15) 15... e5 {[%emt 0:00:12]} 16. Be3 {[%emt 0:00:02]} Nc5 $2 {[%emt 0:00:18]} ({Black should try} 16... Qc7 $19 {White must now prevent ...Rfd8.} 17. c3 Nc5 18. Bxc5 Qxc5) 17. Bxc5 $11 {[%emt 0:00:36]} ({Of course not} 17. Qxd6 Qxd6 18. Rxd6 Nfxe4 19. Nxe4 Nxe4 $17) 17... dxc5 {[%emt 0:00:02][%cal Bd6c5,Bc5c4,Bc4c3][%mdl 32]} 18. Qe3 {[%emt 0:00:07]} (18. Qxd8 $11 {remains equal.} Rfxd8 19. fxe5) 18... Qc7 $17 {[%emt 0:00:12]} 19. Bf3 {[%emt 0:00:21]} (19. g4 $17) 19... c4 $19 {[%emt 0:00:02]} 20. f5 {[%emt 0:00:08]} (20. fxe5 $142 Qxe5 21. Qf4) 20... c3 {[%emt 0:00:07]} 21. b3 {[%emt 0:00:11]} (21. fxg6 {was necessary.} fxg6 22. bxc3) 21... a4 {[%emt 0:00:08] [#] Strongly threatening ...axb3. Black is clearly winning.} 22. bxa4 {[%emt 0:00:30]} Ra8 {[%emt 0:00:03]} 23. Nd3 {[%emt 0:00:09]} (23. Nc1 $142 Qc6 24. fxg6 hxg6 25. Be2 Qxa4 26. Bc4) 23... Qa5 {[%emt 0:00:07]} 24. fxg6 {[%emt 0:00:15]} hxg6 {[%emt 0:00:02]} 25. g4 {[%emt 0:00:19]} Qxa4 {[%emt 0:00:02]} 26. Nec1 {[%emt 0:00:01]} Ba6 {[%emt 0:00:17] [#] ( -> ...Qa3)} 27. Nb3 {[%emt 0:00:21] Weighted Error Value: White=1.22/Black=0.15 (very precise)} 0-1

[Event "Romanian Team Blitz Open 2022"]
[Site "Sebes"]
[Date "2022.12.04"]
[Round "5.24"]
[White "Santimbrean, Mihnea-Nicolae"]
[Black "Duma, Ioan-Gheorghe"]
[Result "0-1"]
[ECO "C54"]
[WhiteElo "1491"]
[BlackElo "1782"]
[Annotator "NA RC COMBH"]
[PlyCount "172"]
[EventDate "2022.12.04"]
[EventType "blitz"]
[EventCountry "ROU"]
[SourceTitle "playchess.com"]
[Source "ChessBase"]
[SourceQuality "1"]
[TimeControl "180+2"]

1. e4 {[%emt 0:00:02]} e5 {[%emt 0:00:01]} 2. Nf3 {[%emt 0:00:01]} Nc6 {[%emt 0:00:01]} 3. Bc4 {[%emt 0:00:01]} Bc5 {[%emt 0:00:02]} 4. c3 {[%emt 0:00:01]} d6 {[%emt 0:00:09]} 5. d3 {[%emt 0:00:02]} Nf6 {[%emt 0:00:04]} 6. Nbd2 {[%emt 0:00:05]} a6 {[%emt 0:00:01]} 7. Bb3 {[%emt 0:00:01]} O-O {[%emt 0:00:02]} 8. h3 {[%emt 0:03:05]} b5 9. O-O {[%emt 0:00:00]} Na5 {[%emt 0:00:02]} 10. Bc2 {[%emt 0:00:00]} Bb6 {[%emt 0:00:14]} 11. Re1 {[%emt 0:00:00]} c5 {[%emt 0:00:02]} 12. Nf1 {[%emt 0:00:00]} Nc6 {[%emt 0:00:02]} 13. Ng3 {[%emt 0:00:00]} Qc7 {[%emt 0:00:08]} 14. Nh4 {[%emt 0:00:00]} h6 {[%emt 0:00:11]} 15. Nhf5 {[%emt 0:00:00]} Kh7 {[%emt 0:00:12]} 16. Qd2 {[%emt 0:00:00]} Ng8 {[%emt 0:00:02]} 17. Qe2 {[%emt 0:00:00]} Nce7 {[%emt 0:00:14]} 18. Qf3 {[%emt 0:00:00]} Nxf5 {[%emt 0:00:32]} 19. Nxf5 {[%emt 0:00:00]} Bxf5 {[%emt 0:00:22]} 20. Qxf5+ {[%emt 0:00:00]} g6 {[%emt 0:00:03]} 21. Qg4 {[%emt 0:00:00]} f5 {[%emt 0:00:06]} 22. exf5 {[%emt 0:00:00]} gxf5 {[%emt 0:00:01]} 23. Qh5 {[%emt 0:00:00]} Qf7 {[%emt 0:00:05]} 24. Qxf7+ {[%emt 0:00:00]} Rxf7 {[%emt 0:00:01]} 25. Bb3 {[%emt 0:00:00]} Rf6 {[%emt 0:00:03]} 26. Bd5 {[%emt 0:00:00]} Raf8 {[%emt 0:00:01]} 27. c4 {[%emt 0:00:00]} Ne7 {[%emt 0:00:03]} 28. Bb7 {[%emt 0:00:00]} bxc4 {[%emt 0:00:08]} 29. dxc4 {[%emt 0:00:00]} a5 {[%emt 0:00:12]} 30. Bd2 {[%emt 0:00:00]} Rg8 {[%emt 0:00:18]} 31. Kh1 {[%emt 0:00:00]} Rg7 {[%emt 0:00:07]} 32. Bf3 {[%emt 0:00:03]} Ng6 {[%emt 0:00:01]} 33. Bd5 {[%emt 0:00:04]} Nh4 {[%emt 0:00:02]} 34. Bc3 {[%emt 0:00:07]} Ng6 {[%emt 0:00:08]} 35. g3 {[%emt 0:00:05]} f4 {[%emt 0:00:03]} 36. Be4 {[%emt 0:00:08]} fxg3 {[%emt 0:00:01]} 37. fxg3 {[%emt 0:00:02]} Kh8 {[%emt 0:00:00]} 38. Kh2 {[%emt 0:00:06]} Ne7 {[%emt 0:00:02]} 39. Rf1 {[%emt 0:00:03]} Rgf7 {[%emt 0:00:02]} 40. Kg2 {[%emt 0:00:03]} Kg7 {[%emt 0:00:02]} 41. Rxf6 {[%emt 0:00:02]} Rxf6 {[%emt 0:00:02]} 42. Rf1 {[%emt 0:00:02]} Rxf1 {[%emt 0:00:01]} 43. Kxf1 {[%emt 0:00:25]} Kf6 44. Kf2 {[%emt 0:00:02]} Nf5 {[%emt 0:00:37]} 45. Kf3 {[%emt 0:00:00]} Nd4+ {[%emt 0:00:00]} 46. Kg4 {[%emt 0:00:00]} Bd8 {[%emt 0:00:00]} 47. Kh5 {[%emt 0:00:00]} Kg7 {[%emt 0:00:00]} 48. Bd2 {[%emt 0:00:00]} Ne6 {[%emt 0:00:00]} 49. Bxh6+ {[%emt 0:00:10]} Kf6 50. Bd2 {[%emt 0:00:00]} a4 {[%emt 0:00:00]} 51. Bc6 {[%emt 0:00:00]} a3 {[%emt 0:00:00]} 52. b3 {[%emt 0:00:00]} Bc7 {[%emt 0:00:02]} 53. Bc1 {[%emt 0:00:02]} Nd4 {[%emt 0:00:00]} 54. Bd5 {[%emt 0:00:03]} Ne2 {[%emt 0:00:03]} 55. Bxa3 {[%emt 0:00:07]} Nxg3+ {[%emt 0:00:02]} 56. Kg4 {[%emt 0:00:00]} Ne2 {[%emt 0:00:03]} 57. Bb2 {[%emt 0:00:00]} Nf4 {[%emt 0:00:02]} 58. Kg3 {[%emt 0:00:01]} Nxd5 59. cxd5 {[%emt 0:00:01]} Kf5 {[%emt 0:00:02]} 60. Kf3 {[%emt 0:00:01]} Bd8 {[%emt 0:00:02]} 61. a4 {[%emt 0:00:01]} Ba5 {[%emt 0:00:18]} 62. Ke3 {[%emt 0:00:02]} Be1 {[%emt 0:00:00]} 63. Kd3 {[%emt 0:00:01]} Kf4 {[%emt 0:00:00]} 64. Bc3 {[%emt 0:00:01]} e4+ {[%emt 0:00:00]} 65. Kc2 {[%emt 0:00:02]} Bh4 {[%emt 0:00:00]} 66. Bd2+ {[%emt 0:00:02]} Ke5 {[%emt 0:00:00]} 67. Be3 {[%emt 0:00:01]} Kxd5 {[%emt 0:00:00]} 68. Kc3 {[%emt 0:00:01]} Bf6+ {[%emt 0:00:00]} 69. Kc2 {[%emt 0:00:01]} Kc6 {[%emt 0:00:01]} 70. a5 {[%emt 0:00:02]} d5 {[%emt 0:00:01]} 71. Kd2 {[%emt 0:00:03]} d4 {[%emt 0:00:00]} 72. Bf4 {[%emt 0:00:02]} Bd8 {[%emt 0:00:04]} 73. h4 {[%emt 0:00:03]} Bxh4 {[%emt 0:00:01]} 74. Kc2 {[%emt 0:00:03]} Kb5 {[%emt 0:00:19]} 75. Bd6 {[%emt 0:00:03]} Bd8 {[%emt 0:00:00]} 76. Kd2 {[%emt 0:00:02]} Bxa5+ {[%emt 0:00:00]} 77. Kc2 {[%emt 0:00:02]} Bb4 {[%emt 0:00:00]} 78. Kd1 {[%emt 0:00:02]} c4 {[%emt 0:00:00]} 79. bxc4+ Kxc4 {[%emt 0:00:00]} 80. Bf4 {[%emt 0:00:03]} Kd3 {[%emt 0:00:00]} 81. Bg5 {[%emt 0:00:03]} e3 {[%emt 0:00:00]} 82. Bh4 {[%emt 0:00:11]} Ke4 83. Ke2 {[%emt 0:00:00]} d3+ {[%emt 0:00:00]} 84. Kd1 Kf3 85. Be1 {[%emt 0:00:00]} e2+ {[%emt 0:00:00]} 86. Kc1 {[%emt 0:00:01]} Bxe1 {[%emt 0:00:00]} 0-1

[Event "Romanian Team Blitz Open 2022"]
[Site "Sebes"]
[Date "2022.12.04"]
[Round "5.25"]
[White "Stefan, Romulus-Cristian"]
[Black "Macarie, Maia-Elisabeta"]
[Result "1-0"]
[ECO "D03"]
[WhiteElo "2097"]
[BlackElo "1100"]
[Annotator "TA"]
[PlyCount "77"]
[EventDate "2022.12.04"]
[EventType "blitz"]
[EventCountry "ROU"]
[SourceTitle "playchess.com"]
[Source "ChessBase"]
[SourceQuality "1"]
[TimeControl "180+2"]

{[%evp 16,77,0,-8,3,2,22,-16,-8,-10,-14,-12,-6,-15,-11,-37,-33,-35,-35,-39,-34,-44,-44,-40,-35,-69,-68,-58,-23,-59,-27,-58,-45,-108,-97,-119,-132,-129,-121,-121,318,307,391,391,359,339,389,389,629,555,1024,947,1200,946,1143,1110,1708,1795,1743,1608,1659,1627,2190,1735]} 1. d4 {[%emt 0:00:01]} Nf6 {[%emt 0:00:01]} 2. Nf3 {[%emt 0:03:05]} e6 3. Bg5 {[%emt 0:00:00]} d5 {[%emt 0:00:03]} 4. Nbd2 {[%emt 0:00:00]} Be7 {[%emt 0:00:01]} 5. e3 {[%emt 0:00:00]} h6 {[%emt 0:00:00]} 6. Bh4 {[%emt 0:00:00]} Nbd7 {[%emt 0:00:03]} 7. Bd3 {[%emt 0:00:00]} b6 {[%emt 0:00:02]} 8. c3 {[%emt 0:00:00]} Bb7 {[%emt 0:00:01]} 9. O-O {[%emt 0:00:00] [#]} Rc8 $146 {[%emt 0:00:02] D03: 1 d4 d5 2 Nf3 Nf6 3 Bg5, including Torre Attack with early ...d5.} ({Predecessor:} 9... c5 10. Qe2 Qc7 11. a4 O-O 12. a5 Rae8 13. axb6 axb6 14. Bg3 Bd6 15. Bxd6 Qxd6 16. Bb5 Re7 17. Ra7 Bc6 18. Rfa1 Bxb5 19. Qxb5 Rfe8 20. Rb7 g6 21. Raa7 Kg7 22. g3 Ng4 23. Rxd7 {1-0 (23) Martirosyan,H (2632)-Erigaisi,A (2567) Chess.com INT 2021}) 10. Qa4 {[%emt 0:00:00][%cal Of3e5]} O-O {[%emt 0:00:08][%cal Oa7a6]} 11. Ne5 {[%emt 0:00:00]} ({And not} 11. Qxa7 Bc6 12. Ne5 Nxe5 13. dxe5 Ra8 14. exf6 Bxf6 15. Bxf6 gxf6 $17) 11... Nxe5 {[%emt 0:00:14] The position is equal.} 12. dxe5 {[%emt 0:00:00]} Nd7 {[%emt 0:00:06][%cal Bf6d7,Bd7c5,Bc5d3][%mdl 32]} 13. Bxe7 {[%emt 0:00:00]} Qxe7 {[%emt 0:00:02]} 14. Qf4 {[%emt 0:00:00]} Nc5 {[%emt 0:00:29]} 15. Bc2 {[%emt 0:00:00]} (15. Be2 {simplifies} Ba6 16. Bxa6 Nxa6 17. Rfd1) 15... Ba6 {[%emt 0:00:10]} 16. Rfb1 {[%emt 0:00:00]} Bd3 {[%emt 0:00:15] Inhibits b4.} (16... Be2 {feels hotter.} 17. Nb3 Nd3 18. Qg3 c5) 17. Bxd3 {[%emt 0:00:00]} Nxd3 {[%emt 0:00:02]} 18. Qd4 {[%emt 0:00:00]} Nc5 {[%emt 0:00:07]} 19. a4 {[%emt 0:00:00]} Nd7 {[%emt 0:00:02]} 20. a5 {[%emt 0:00:00]} c5 $36 {[%emt 0:00:01][%mdl 2048] Black is more active.} 21. Qf4 {[%emt 0:00:00]} Qd8 {[%emt 0:00:17]} 22. Nf3 {[%emt 0:00:00][%cal Bd2f3,Bf3d4,Bd4e6][%mdl 32]} Rb8 {[%emt 0:00:09]} 23. a6 {[%emt 0:00:00]} Qc7 {[%emt 0:00:08]} 24. Qg3 {[%emt 0:00:00]} ({White should try} 24. Rd1 $15) 24... c4 $17 {[%emt 0:00:06]} 25. Rd1 {[%emt 0:00:00]} Nc5 {[%emt 0:00:04]} 26. Nd4 {[%emt 0:00:00]} Ne4 {[%emt 0:00:08]} 27. Qf4 {[%emt 0:00:00] [#]} f6 $2 {[%emt 0:00:10][%mdl 8192] This costs Black the game.} ({Don't play} 27... g5 $6 28. Qg4 $11) (27... b5 $1 $17 {stays on course. Threatens to win with ...b4.} 28. Nc2 g5) 28. Nxe6 $18 {[%emt 0:00:08]} Qf7 {[%emt 0:00:12]} 29. Nxf8 {[%emt 0:00:02]} Rxf8 {[%emt 0:00:05]} 30. exf6 {[%emt 0:00:03]} Qxf6 {[%emt 0:00:06]} 31. Qxf6 {[%emt 0:00:02]} ({Not} 31. Rxd5 Qg6 $18) 31... Rxf6 {[%emt 0:00:01][%mdl 4096] Endgame KRR-KRN} (31... Nxf6 32. f3 Kf7) 32. f3 {[%emt 0:00:01] White is clearly winning.} Nd6 {[%emt 0:00:05]} 33. Rxd5 {[%emt 0:00:03]} Re6 {[%emt 0:00:11]} 34. e4 {[%emt 0:00:03] [#] Rad1 is the strong threat.} Kh7 {[%emt 0:00:06]} 35. Rad1 {[%emt 0:00:02]} Nf7 {[%emt 0:00:13]} 36. Rd7 {[%emt 0:00:02][%csl LRa7,LRf7]} Ne5 {[%emt 0:00:06]} 37. Rxa7 {[%emt 0:00:02]} Nd3 {[%emt 0:00:01]} 38. b4 {[%emt 0:00:07]} Kg6 {[%emt 0:00:17]} 39. Rc7 {[%emt 0:00:39] Weighted Error Value: White=0.21 (precise) /Black=0.62} 1-0